{"text_format":"1","workbook":"xlsx","n_sheets":2,"sheets":["Instructies & instellingen","sep12"],"not_rendered":{"charts":0,"images":0,"macros":1,"external_links":0,"defined_names":13,"comments":0,"pivot_tables":0},"unopened":[],"bounds":{"document_bytes":16777216,"sheet_cells":100000,"rows_first":2000,"rows_last":500,"rows_between":2000,"halvings":0,"cell_chars":16384,"cell_head_chars":4096},"cells_cut":0,"cells_raw":0,"read":"whole","date_system":"1900"}

{"sheet":"Instructies & instellingen","index":0,"n_rows":23,"n_cols":9,"rows_kept":23,"cut":false,"hidden":false,"merged":[[3,2,3,4],[5,2,5,4],[7,2,7,4],[9,2,9,4],[3,7,3,8],[5,7,5,8],[7,7,7,8],[9,7,9,8],[11,7,11,8],[4,7,4,8],[6,7,6,8],[8,7,8,8],[10,7,10,8]]}
[]
[null,"Instructies & instellingen"]
[]
[null,1,"Typ in de onderstaande tabel met lessen de namen van de lessen die u in deze planning wilt bijhouden.",null,null,null,5,"Geef een begindatum voor de planning op in cel A5."]
[]
[null,2,"Pas in de tabel met activiteiten, ook hieronder, de voorbeeldactiviteiten naar behoefte aan.",null,null,null,6,"Gebruik in rij 4 de vervolgkeuzelijst om lessen aan de planning toe te voegen. "]
[]
[null,3,"Geef in cel I14 het aantal rijen op dat u voor elke dag met huiswerk wilt gebruiken.",null,null,null,7,"Voeg onder elke les opdrachten toe in de kolom Opdrachten."]
[]
[null,4,"Voer in een planningsblad, zoals 12 september, stap 5 - 9 uit.",null,null,null,8,"Geef in de kolom met uren, aangeduid met een klokpictogram, een schatting op van het totale aantal uren dat u voor elk opdracht nodig hebt."]
[]
[null,null,null,null,null,null,9,"Als de opdracht is voltooid, dubbelklikt u naast de opdracht in de kolom Gereed, aangegeven met een vinkje."]
[]
[null,null,"Lessen",null,"Activiteiten",null,null,"Aantal rijen per dag:",5]
[null,null,"Wiskunde 101",null,"Discussie"]
[null,null,"Engels 105",null,"Practicum"]
[null,null,"Frans 103",null,"College"]
[null,null,"Scheikunde 101",null,"Toets"]
[null,null,"Geschiedenis 101",null,"Lezen"]
[null,null,null,null,"Uitleg"]
[null,null,null,null,"Scriptie"]
[null,null,null,null,"Bespreking"]
[null,null,null,null,"Studeren"]

{"sheet":"sep12","index":1,"n_rows":103,"n_cols":24,"rows_kept":103,"cut":false,"hidden":false,"merged":[]}
[]
[null,"Huiswerk"]
[]
[null,"Geef een begindatum op","Totaal"," Les:",null,"Wiskunde 101"," Les:",null,"Engels 105"," Les:",null,"Frans 103"," Les:",null,"Scheikunde 101"," Les:",null,null," Les:",null,null," Les:"]
[null,"2011-09-12",null,null,null,"OPDRACHT",null,null,"OPDRACHT",null,null,"OPDRACHT",null,null,"OPDRACHT",null,null,"OPDRACHT",null,null,"OPDRACHT",null,null,"OPDRACHT"]
[]
[null,{"$f":"PlanningDag","v":"2011-09-12"},{"$f":"DagelijkseUurtotalen","v":6.5},1,1.5,"Lezen",1,2,"Studeren",null,1,"Lezen",1,1,"Toets"]
[null,{"$f":"PlanningDag","v":""},{"$f":"DagelijkseUurtotalen","v":""},1,1,"Bespreking"]
[null,{"$f":"PlanningDag","v":""},{"$f":"DagelijkseUurtotalen","v":""}]
[null,{"$f":"PlanningDag","v":""},{"$f":"DagelijkseUurtotalen","v":""}]
[null,{"$f":"PlanningDag","v":""},{"$f":"DagelijkseUurtotalen","v":""}]
[null,{"$f":"PlanningDag","v":"2011-09-13"},{"$f":"DagelijkseUurtotalen","v":0}]
[null,{"$f":"PlanningDag","v":""},{"$f":"DagelijkseUurtotalen","v":""}]
[null,{"$f":"PlanningDag","v":""},{"$f":"DagelijkseUurtotalen","v":""}]
[null,{"$f":"PlanningDag","v":""},{"$f":"DagelijkseUurtotalen","v":""}]
[null,{"$f":"PlanningDag","v":""},{"$f":"DagelijkseUurtotalen","v":""}]
[null,{"$f":"PlanningDag","v":"2011-09-14"},{"$f":"DagelijkseUurtotalen","v":0}]
[null,{"$f":"PlanningDag","v":""},{"$f":"DagelijkseUurtotalen","v":""}]
[null,{"$f":"PlanningDag","v":""},{"$f":"DagelijkseUurtotalen","v":""}]
[null,{"$f":"PlanningDag","v":""},{"$f":"DagelijkseUurtotalen","v":""}]
[null,{"$f":"PlanningDag","v":""},{"$f":"DagelijkseUurtotalen","v":""}]
[null,{"$f":"PlanningDag","v":"2011-09-15"},{"$f":"DagelijkseUurtotalen","v":0}]
[null,{"$f":"PlanningDag","v":""},{"$f":"DagelijkseUurtotalen","v":""}]
[null,{"$f":"PlanningDag","v":""},{"$f":"DagelijkseUurtotalen","v":""}]
[null,{"$f":"PlanningDag","v":""},{"$f":"DagelijkseUurtotalen","v":""}]
[null,{"$f":"PlanningDag","v":""},{"$f":"DagelijkseUurtotalen","v":""}]
[null,{"$f":"PlanningDag","v":"2011-09-16"},{"$f":"DagelijkseUurtotalen","v":0}]
[null,{"$f":"PlanningDag","v":""},{"$f":"DagelijkseUurtotalen","v":""}]
[null,{"$f":"PlanningDag","v":""},{"$f":"DagelijkseUurtotalen","v":""}]
[null,{"$f":"PlanningDag","v":""},{"$f":"DagelijkseUurtotalen","v":""}]
[null,{"$f":"PlanningDag","v":""},{"$f":"DagelijkseUurtotalen","v":""}]
[null,{"$f":"PlanningDag","v":"2011-09-17"},{"$f":"DagelijkseUurtotalen","v":0}]
[null,{"$f":"PlanningDag","v":""},{"$f":"DagelijkseUurtotalen","v":""}]
[null,{"$f":"PlanningDag","v":""},{"$f":"DagelijkseUurtotalen","v":""}]
[null,{"$f":"PlanningDag","v":""},{"$f":"DagelijkseUurtotalen","v":""}]
[null,{"$f":"PlanningDag","v":""},{"$f":"DagelijkseUurtotalen","v":""}]
[null,{"$f":"PlanningDag","v":"2011-09-18"},{"$f":"DagelijkseUurtotalen","v":0}]
[null,{"$f":"PlanningDag","v":""},{"$f":"DagelijkseUurtotalen","v":""}]
[null,{"$f":"PlanningDag","v":""},{"$f":"DagelijkseUurtotalen","v":""}]
[null,{"$f":"PlanningDag","v":""},{"$f":"DagelijkseUurtotalen","v":""}]
[null,{"$f":"PlanningDag","v":""},{"$f":"DagelijkseUurtotalen","v":""}]
[null,{"$f":"PlanningDag","v":""},{"$f":"DagelijkseUurtotalen","v":""}]
[null,{"$f":"PlanningDag","v":""},{"$f":"DagelijkseUurtotalen","v":""}]
[null,{"$f":"PlanningDag","v":""},{"$f":"DagelijkseUurtotalen","v":""}]
[null,{"$f":"PlanningDag","v":""},{"$f":"DagelijkseUurtotalen","v":""}]
[null,{"$f":"PlanningDag","v":""},{"$f":"DagelijkseUurtotalen","v":""}]
[null,{"$f":"PlanningDag","v":""},{"$f":"DagelijkseUurtotalen","v":""}]
[null,{"$f":"PlanningDag","v":""},{"$f":"DagelijkseUurtotalen","v":""}]
[null,{"$f":"PlanningDag","v":""},{"$f":"DagelijkseUurtotalen","v":""}]
[null,{"$f":"PlanningDag","v":""},{"$f":"DagelijkseUurtotalen","v":""}]
[null,{"$f":"PlanningDag","v":""},{"$f":"DagelijkseUurtotalen","v":""}]
[null,{"$f":"PlanningDag","v":""},{"$f":"DagelijkseUurtotalen","v":""}]
[null,{"$f":"PlanningDag","v":""},{"$f":"DagelijkseUurtotalen","v":""}]
[null,{"$f":"PlanningDag","v":""},{"$f":"DagelijkseUurtotalen","v":""}]
[null,{"$f":"PlanningDag","v":""},{"$f":"DagelijkseUurtotalen","v":""}]
[null,{"$f":"PlanningDag","v":""},{"$f":"DagelijkseUurtotalen","v":""}]
[null,{"$f":"PlanningDag","v":""},{"$f":"DagelijkseUurtotalen","v":""}]
[null,{"$f":"PlanningDag","v":""},{"$f":"DagelijkseUurtotalen","v":""}]
[null,{"$f":"PlanningDag","v":""},{"$f":"DagelijkseUurtotalen","v":""}]
[null,{"$f":"PlanningDag","v":""},{"$f":"DagelijkseUurtotalen","v":""}]
[null,{"$f":"PlanningDag","v":""},{"$f":"DagelijkseUurtotalen","v":""}]
[null,{"$f":"PlanningDag","v":""},{"$f":"DagelijkseUurtotalen","v":""}]
[null,{"$f":"PlanningDag","v":""},{"$f":"DagelijkseUurtotalen","v":""}]
[null,{"$f":"PlanningDag","v":""},{"$f":"DagelijkseUurtotalen","v":""}]
[null,{"$f":"PlanningDag","v":""},{"$f":"DagelijkseUurtotalen","v":""}]
[null,{"$f":"PlanningDag","v":""},{"$f":"DagelijkseUurtotalen","v":""}]
[null,{"$f":"PlanningDag","v":""},{"$f":"DagelijkseUurtotalen","v":""}]
[null,{"$f":"PlanningDag","v":""},{"$f":"DagelijkseUurtotalen","v":""}]
[null,{"$f":"PlanningDag","v":""},{"$f":"DagelijkseUurtotalen","v":""}]
[null,{"$f":"PlanningDag","v":""},{"$f":"DagelijkseUurtotalen","v":""}]
[null,{"$f":"PlanningDag","v":""},{"$f":"DagelijkseUurtotalen","v":""}]
[null,{"$f":"PlanningDag","v":""},{"$f":"DagelijkseUurtotalen","v":""}]
[null,{"$f":"PlanningDag","v":""},{"$f":"DagelijkseUurtotalen","v":""}]
[null,{"$f":"PlanningDag","v":""},{"$f":"DagelijkseUurtotalen","v":""}]
[null,{"$f":"PlanningDag","v":""},{"$f":"DagelijkseUurtotalen","v":""}]
[null,{"$f":"PlanningDag","v":""},{"$f":"DagelijkseUurtotalen","v":""}]
[null,{"$f":"PlanningDag","v":""},{"$f":"DagelijkseUurtotalen","v":""}]
[null,{"$f":"PlanningDag","v":""},{"$f":"DagelijkseUurtotalen","v":""}]
[null,{"$f":"PlanningDag","v":""},{"$f":"DagelijkseUurtotalen","v":""}]
[null,{"$f":"PlanningDag","v":""},{"$f":"DagelijkseUurtotalen","v":""}]
[null,{"$f":"PlanningDag","v":""},{"$f":"DagelijkseUurtotalen","v":""}]
[null,{"$f":"PlanningDag","v":""},{"$f":"DagelijkseUurtotalen","v":""}]
[null,{"$f":"PlanningDag","v":""},{"$f":"DagelijkseUurtotalen","v":""}]
[null,{"$f":"PlanningDag","v":""},{"$f":"DagelijkseUurtotalen","v":""}]
[null,{"$f":"PlanningDag","v":""},{"$f":"DagelijkseUurtotalen","v":""}]
[null,{"$f":"PlanningDag","v":""},{"$f":"DagelijkseUurtotalen","v":""}]
[null,{"$f":"PlanningDag","v":""},{"$f":"DagelijkseUurtotalen","v":""}]
[null,{"$f":"PlanningDag","v":""},{"$f":"DagelijkseUurtotalen","v":""}]
[null,{"$f":"PlanningDag","v":""},{"$f":"DagelijkseUurtotalen","v":""}]
[null,{"$f":"PlanningDag","v":""},{"$f":"DagelijkseUurtotalen","v":""}]
[null,{"$f":"PlanningDag","v":""},{"$f":"DagelijkseUurtotalen","v":""}]
[null,{"$f":"PlanningDag","v":""},{"$f":"DagelijkseUurtotalen","v":""}]
[null,{"$f":"PlanningDag","v":""},{"$f":"DagelijkseUurtotalen","v":""}]
[null,{"$f":"PlanningDag","v":""},{"$f":"DagelijkseUurtotalen","v":""}]
[null,{"$f":"PlanningDag","v":""},{"$f":"DagelijkseUurtotalen","v":""}]
[null,{"$f":"PlanningDag","v":""},{"$f":"DagelijkseUurtotalen","v":""}]
[null,{"$f":"PlanningDag","v":""},{"$f":"DagelijkseUurtotalen","v":""}]
[null,{"$f":"PlanningDag","v":""},{"$f":"DagelijkseUurtotalen","v":""}]
[null,{"$f":"PlanningDag","v":""},{"$f":"DagelijkseUurtotalen","v":""}]
[null,{"$f":"PlanningDag","v":""},{"$f":"DagelijkseUurtotalen","v":""}]
[null,{"$f":"PlanningDag","v":""},{"$f":"DagelijkseUurtotalen","v":""}]
[null,{"$f":"PlanningDag","v":""},{"$f":"DagelijkseUurtotalen","v":""}]
[null,{"$f":"PlanningDag","v":""},{"$f":"DagelijkseUurtotalen","v":""}]